[Event "CRO-ch Youth U17 2020"]
[Site "Vinkovci"]
[Date "2020.07.29"]
[Round "3.1"]
[White "Levacic, Matej"]
[Black "Perusko, Niko"]
[Result "1-0"]
[ECO "A06"]
[WhiteElo "2040"]
[BlackElo "1902"]
[Annotator "ChessBase"]
[PlyCount "57"]
[EventDate "2020.07.28"]
[EventType "swiss"]
[EventCountry "CRO"]
[SourceTitle "playchess.com"]
[Source "ChessBase"]
[SourceQuality "1"]
[TimeControl "5400+30"]

1. d4 {[%emt 0:00:30]} c6 {[%emt 0:00:30]} 2. c4 {[%emt 0:01:30]} e6 {[%emt 0:00:00]} 3. Nf3 {[%emt 0:06:30]} d5 {[%emt 0:00:00]} 4. e3 {[%emt 0:01:30]} Nf6 {[%emt 0:00:30]} 5. b3 {[%emt 0:01:30]} Nbd7 {[%emt 0:04:30]} 6. Bd3 {[%emt 0:01:30]} Bd6 {[%emt 0:01:30]} 7. Bb2 {[%emt 0:01:30]} O-O {[%emt 0:04:30]} 8. Nbd2 {[%emt 0:02:30]} Qe7 {[%emt 0:03:30]} 9. Ne5 {[%emt 0:01:30]} c5 {[%emt 0:06:30]} 10. O-O {[%emt 0:02:30]} Rd8 {[%emt 0:13:30]} 11. f4 {[%emt 0:04:30]} Nf8 {[%emt 0:00:30]} 12. Qc2 {[%emt 0:13:30]} Qc7 {[%emt 0:12:30]} 13. Rf3 {[%emt 0:08:30]} b6 {[%emt 0:10:30]} 14. Rh3 {[%emt 0:04:30]} Bb7 {[%emt 0:05:30]} 15. Rf1 {[%emt 0:06:30]} Ng6 {[%emt 0:11:30]} 16. f5 {[%emt 0:13:30]} exf5 {[%emt 0:01:30]} 17. Bxf5 {[%emt 0:01:30]} Bc8 {[%emt 0:01:36]} 18. cxd5 {[%emt 0:05:30]} Bxe5 {[%emt 0:04:04]} 19. dxe5 {[%emt 0:00:30]} Nxd5 {[%emt 0:00:09]} 20. Nc4 {[%emt 0:04:07]} Nb4 {[%emt 0:08:22]} 21. Qe4 {[%emt 0:03:17]} Bxf5 {[%emt 0:03:00]} 22. Qxf5 {[%emt 0:00:35]} Qe7 {[%emt 0:00:12]} 23. Qh5 {[%emt 0:02:26]} h6 {[%emt 0:01:04]} 24. Nd6 {[%emt 0:05:59]} Qe6 {[%emt 0:02:08]} 25. Nxf7 {[%emt 0:01:14]} Rf8 {[%emt 0:00:01]} 26. Rf6 {[%emt 0:01:25]} Qd5 {[%emt 0:02:10]} 27. Nxh6+ {[%emt 0:00:51]} gxh6 {[%emt 0:00:31]} 28. Qxg6+ {[%emt 0:00:09]} Kh8 {[%emt 0:00:04]} 29. Rxh6# {[%emt 0:00:05]} 1-0

[Event "CRO-ch Youth U17 2020"]
[Site "Vinkovci"]
[Date "2020.07.29"]
[Round "3.2"]
[White "Kovac, Petar"]
[Black "Jurakic, Lukas"]
[Result "1-0"]
[ECO "D97"]
[WhiteElo "1949"]
[BlackElo "2023"]
[Annotator "ChessBase"]
[PlyCount "71"]
[EventDate "2020.07.28"]
[EventType "swiss"]
[EventCountry "CRO"]
[SourceTitle "playchess.com"]
[Source "ChessBase"]
[SourceQuality "1"]
[TimeControl "5400+30"]

1. d4 {[%emt 0:00:30]} Nf6 {[%emt 0:00:30]} 2. c4 {[%emt 0:00:00]} g6 {[%emt 0:00:00]} 3. Nc3 {[%emt 0:00:00]} d5 {[%emt 0:00:00]} 4. Nf3 {[%emt 0:00:00]} Bg7 {[%emt 0:00:00]} 5. Qb3 {[%emt 0:00:00]} dxc4 {[%emt 0:00:00]} 6. Qxc4 {[%emt 0:00:00]} O-O {[%emt 0:00:30]} 7. e4 {[%emt 0:01:00]} Na6 {[%emt 0:01:30]} 8. Bg5 {[%emt 0:00:30]} c5 {[%emt 0:01:30]} 9. d5 {[%emt 0:01:30]} h6 {[%emt 0:06:30]} 10. Bh4 {[%emt 0:02:30]} Qa5 {[%emt 0:13:30]} 11. Qb5 {[%emt 0:04:30]} Qxb5 {[%emt 0:06:30]} 12. Bxb5 {[%emt 0:00:00]} Nc7 {[%emt 0:01:30]} 13. a4 {[%emt 0:03:00]} Nxb5 {[%emt 0:03:30]} 14. axb5 {[%emt 0:00:30]} b6 {[%emt 0:02:30]} 15. O-O {[%emt 0:02:30]} e6 {[%emt 0:08:30]} 16. Rfd1 {[%emt 0:06:30]} Nh5 {[%emt 0:06:30]} 17. Be7 {[%emt 0:06:30]} Re8 {[%emt 0:01:30]} 18. d6 {[%emt 0:00:00]} Bd7 {[%emt 0:05:30]} 19. e5 {[%emt 0:01:00]} g5 {[%emt 0:01:30]} 20. h3 {[%emt 0:00:30]} Nf4 {[%emt 0:04:30]} 21. Ne4 {[%emt 0:02:30]} Ng6 {[%emt 0:04:30]} 22. Nf6+ {[%emt 0:00:30]} Bxf6 {[%emt 0:00:00]} 23. exf6 {[%emt 0:00:30]} a6 {[%emt 0:02:00]} 24. bxa6 {[%emt 0:03:30]} Ra7 {[%emt 0:00:30]} 25. b4 {[%emt 0:18:30]} cxb4 {[%emt 0:04:30]} 26. Rdb1 {[%emt 0:01:30]} Rc8 {[%emt 0:03:30]} 27. Rxb4 {[%emt 0:00:30]} b5 {[%emt 0:00:30]} 28. Nd4 {[%emt 0:02:30]} Rc5 {[%emt 0:01:30]} 29. Ra5 {[%emt 0:01:30]} Rc1+ {[%emt 0:02:02]} 30. Kh2 {[%emt 0:00:30]} Nf4 {[%emt 0:02:50]} 31. Nxb5 {[%emt 0:00:30]} Ra8 {[%emt 0:01:37]} 32. Nc7 {[%emt 0:01:30]} Ra7 {[%emt 0:00:26]} 33. Rb7 {[%emt 0:00:00]} Bc6 {[%emt 0:02:00]} 34. d7 {[%emt 0:06:00]} Bxd7 {[%emt 0:04:16]} 35. Rc5 {[%emt 0:01:30]} Rxa6 {[%emt 0:03:18]} 36. Nxa6 {[%emt 0:00:30]} 1-0

[Event "CRO-ch Youth U17 2020"]
[Site "Vinkovci"]
[Date "2020.07.29"]
[Round "3.3"]
[White "Ljubicic, Mario"]
[Black "Troselj, Ivan"]
[Result "1/2-1/2"]
[ECO "B40"]
[WhiteElo "1966"]
[BlackElo "1857"]
[Annotator "ChessBase"]
[PlyCount "109"]
[EventDate "2020.07.28"]
[EventType "swiss"]
[EventCountry "CRO"]
[SourceTitle "playchess.com"]
[Source "ChessBase"]
[SourceQuality "1"]
[TimeControl "5400+30"]

1. e4 {[%emt 0:00:30]} e6 {[%emt 0:00:30]} 2. d3 {[%emt 0:00:00]} c5 {[%emt 0:00:30]} 3. g3 {[%emt 0:01:00]} Nc6 {[%emt 0:00:30]} 4. Bg2 {[%emt 0:00:30]} Nf6 {[%emt 0:00:30]} 5. Nf3 {[%emt 0:00:30]} Be7 {[%emt 0:00:30]} 6. O-O {[%emt 0:00:30]} O-O {[%emt 0:00:30]} 7. Qe2 {[%emt 0:02:30]} b6 {[%emt 0:01:30]} 8. Bf4 {[%emt 0:00:30]} Bb7 {[%emt 0:00:30]} 9. Nbd2 {[%emt 0:00:30]} d6 {[%emt 0:05:30]} 10. h4 {[%emt 0:03:30]} h6 {[%emt 0:03:30]} 11. c3 {[%emt 0:03:30]} Ba6 {[%emt 0:04:30]} 12. Nb3 {[%emt 0:07:30]} Rc8 {[%emt 0:07:30]} 13. Rfd1 {[%emt 0:07:30]} e5 {[%emt 0:06:30]} 14. Bd2 {[%emt 0:01:30]} Qd7 {[%emt 0:03:30]} 15. Nh2 {[%emt 0:18:30]} d5 {[%emt 0:07:30]} 16. Qf3 {[%emt 0:04:30]} dxe4 {[%emt 0:04:30]} 17. dxe4 {[%emt 0:01:30]} c4 {[%emt 0:03:30]} 18. Be3 {[%emt 0:02:30]} Qe6 {[%emt 0:00:30]} 19. Nd2 {[%emt 0:00:30]} Rcd8 {[%emt 0:00:30]} 20. g4 {[%emt 0:02:30]} Nh7 {[%emt 0:01:30]} 21. Qg3 {[%emt 0:04:30]} g5 {[%emt 0:05:30]} 22. hxg5 {[%emt 0:00:30]} hxg5 {[%emt 0:00:30]} 23. Nhf1 {[%emt 0:05:30]} Nf6 {[%emt 0:06:30]} 24. Bxg5 {[%emt 0:02:30]} Qxg4 {[%emt 0:00:30]} 25. Qxg4 {[%emt 0:01:30]} Nxg4 {[%emt 0:00:30]} 26. Bxe7 {[%emt 0:00:30]} Nxe7 {[%emt 0:00:00]} 27. Bh3 {[%emt 0:00:30]} Nh6 {[%emt 0:00:00]} 28. Ne3 {[%emt 0:00:00]} b5 {[%emt 0:01:30]} 29. a4 {[%emt 0:02:00]} f5 {[%emt 0:01:30]} 30. axb5 {[%emt 0:01:30]} Bxb5 {[%emt 0:00:30]} 31. exf5 {[%emt 0:00:30]} Nhxf5 {[%emt 0:00:30]} 32. Bxf5 {[%emt 0:02:30]} Nxf5 {[%emt 0:00:30]} 33. Ndxc4 {[%emt 0:00:00]} Nxe3 {[%emt 0:01:30]} 34. Rxd8 {[%emt 0:02:00]} Nxc4 {[%emt 0:00:30]} 35. Rxf8+ {[%emt 0:00:30]} Kxf8 {[%emt 0:00:00]} 36. Rxa7 {[%emt 0:00:00]} Ke8 {[%emt 0:00:00]} 37. b3 {[%emt 0:01:00]} Nd2 {[%emt 0:00:30]} 38. Ra5 {[%emt 0:00:30]} Bc6 {[%emt 0:01:30]} 39. b4 {[%emt 0:02:30]} Kd7 {[%emt 0:00:00]} 40. Kh2 {[%emt 0:00:30]} Kd6 {[%emt 0:01:00]} 41. Ra6 {[%emt 0:02:37]} Kd5 {[%emt 0:01:30]} 42. Ra5+ {[%emt 0:00:35]} Kd6 {[%emt 0:02:30]} 43. b5 {[%emt 0:01:30]} Bb7 {[%emt 0:00:30]} 44. Ra7 {[%emt 0:01:40]} Kc7 {[%emt 0:00:30]} 45. Ra2 {[%emt 0:00:10]} Ne4 {[%emt 0:00:30]} 46. Re2 {[%emt 0:01:44]} Kd6 {[%emt 0:00:00]} 47. Re3 {[%emt 0:01:43]} Nxf2 {[%emt 0:01:00]} 48. Kg3 {[%emt 0:01:31]} Ne4+ {[%emt 0:00:00]} 49. Kg4 {[%emt 0:01:28]} Bc8+ {[%emt 0:00:00]} 50. Kh5 {[%emt 0:00:51]} Nf6+ {[%emt 0:01:30]} 51. Kg6 {[%emt 0:00:34]} Nd5 {[%emt 0:00:30]} 52. Re4 {[%emt 0:05:52]} Be6 {[%emt 0:10:30]} 53. Ra4 {[%emt 0:03:34]} Nxc3 {[%emt 0:00:30]} 54. Ra6+ {[%emt 0:00:21]} Kd5 {[%emt 0:00:30]} 55. b6 {[%emt 0:01:37]} 1/2-1/2

[Event "CRO-ch Youth U17 2020"]
[Site "Vinkovci"]
[Date "2020.07.29"]
[Round "3.4"]
[White "Mrvac, Petar"]
[Black "Vucenovic, Damian"]
[Result "1-0"]
[ECO "C50"]
[WhiteElo "1848"]
[BlackElo "1959"]
[Annotator "ChessBase"]
[PlyCount "109"]
[EventDate "2020.07.28"]
[EventType "swiss"]
[EventCountry "CRO"]
[SourceTitle "playchess.com"]
[Source "ChessBase"]
[SourceQuality "1"]
[TimeControl "5400+30"]

1. e4 {[%emt 0:00:30]} e5 {[%emt 0:00:30]} 2. Nf3 {[%emt 0:00:00]} Nc6 {[%emt 0:00:30]} 3. Bc4 {[%emt 0:00:00]} Bc5 {[%emt 0:00:30]} 4. Nc3 {[%emt 0:00:30]} Nf6 {[%emt 0:01:30]} 5. d3 {[%emt 0:00:30]} d6 {[%emt 0:00:30]} 6. h3 {[%emt 0:00:30]} Be6 {[%emt 0:03:30]} 7. Bb3 {[%emt 0:01:30]} Qd7 {[%emt 0:02:30]} 8. Be3 {[%emt 0:01:30]} Bb4 {[%emt 0:03:30]} 9. a3 {[%emt 0:07:30]} Ba5 {[%emt 0:02:30]} 10. Ba4 {[%emt 0:01:30]} Bxc3+ {[%emt 0:06:30]} 11. bxc3 {[%emt 0:00:30]} a6 {[%emt 0:00:30]} 12. Bg5 {[%emt 0:02:30]} b5 {[%emt 0:02:30]} 13. Bb3 {[%emt 0:01:30]} Ne7 {[%emt 0:04:30]} 14. Bxf6 {[%emt 0:02:30]} gxf6 {[%emt 0:00:30]} 15. d4 {[%emt 0:02:30]} Bxb3 {[%emt 0:01:30]} 16. cxb3 {[%emt 0:00:30]} Rg8 {[%emt 0:01:30]} 17. Rg1 {[%emt 0:01:30]} Ng6 {[%emt 0:01:30]} 18. dxe5 {[%emt 0:11:30]} fxe5 {[%emt 0:01:30]} 19. Qd5 {[%emt 0:02:30]} Rb8 {[%emt 0:02:30]} 20. g3 {[%emt 0:14:30]} a5 {[%emt 0:04:30]} 21. O-O-O {[%emt 0:02:30]} b4 {[%emt 0:08:30]} 22. cxb4 {[%emt 0:03:30]} axb4 {[%emt 0:01:30]} 23. a4 {[%emt 0:00:30]} Rb6 {[%emt 0:04:30]} 24. Kb2 {[%emt 0:04:30]} Qc6 {[%emt 0:01:30]} 25. Qd3 {[%emt 0:01:30]} Ne7 {[%emt 0:03:30]} 26. Rc1 {[%emt 0:08:30]} Qb7 {[%emt 0:01:30]} 27. h4 {[%emt 0:07:30]} h6 {[%emt 0:10:30]} 28. Qe3 {[%emt 0:04:14]} c5 {[%emt 0:02:30]} 29. Rgd1 {[%emt 0:02:18]} Rg6 {[%emt 0:02:30]} 30. Nd2 {[%emt 0:01:32]} Ra6 {[%emt 0:02:30]} 31. Nc4 {[%emt 0:01:25]} Re6 {[%emt 0:01:30]} 32. Rd2 {[%emt 0:02:02]} Qc7 {[%emt 0:05:24]} 33. Rcd1 {[%emt 0:03:09]} f5 {[%emt 0:01:54]} 34. f3 {[%emt 0:00:54]} Kd8 {[%emt 0:04:42]} 35. Qd3 {[%emt 0:04:30]} fxe4 {[%emt 0:00:59]} 36. fxe4 {[%emt 0:00:19]} Kd7 {[%emt 0:01:09]} 37. Nxe5+ {[%emt 0:00:34]} Rxe5 {[%emt 0:00:25]} 38. Qxa6 {[%emt 0:00:07]} Nc6 {[%emt 0:01:27]} 39. Qc4 {[%emt 0:02:11]} Ne7 {[%emt 0:02:30]} 40. Rf1 {[%emt 0:01:10]} Qc6 {[%emt 0:00:53]} 41. Rf6 {[%emt 0:00:32]} Kc7 {[%emt 0:01:10]} 42. Rdxd6 {[%emt 0:01:20]} Qxd6 {[%emt 0:00:21]} 43. Rxd6 {[%emt 0:00:04]} Kxd6 {[%emt 0:00:03]} 44. Kc2 {[%emt 0:00:49]} Nc6 {[%emt 0:00:16]} 45. Kd3 {[%emt 0:00:39]} Re6 {[%emt 0:00:18]} 46. Qd5+ {[%emt 0:00:10]} Ke7 {[%emt 0:00:23]} 47. Qxc5+ {[%emt 0:00:05]} Kf7 {[%emt 0:00:19]} 48. a5 {[%emt 0:00:36]} Ne5+ {[%emt 0:00:23]} 49. Kd4 {[%emt 0:00:36]} Kf6 {[%emt 0:02:34]} 50. Qf8+ {[%emt 0:00:23]} Nf7 {[%emt 0:00:28]} 51. e5+ {[%emt 0:00:14]} Kg6 {[%emt 0:01:30]} 52. Qg8+ {[%emt 0:00:14]} Kf5 {[%emt 0:00:16]} 53. Qxf7+ {[%emt 0:00:12]} Kg4 {[%emt 0:00:03]} 54. Qxe6+ {[%emt 0:00:11]} Kh5 {[%emt 0:00:03]} 55. Qf5# {[%emt 0:00:07]} 1-0

[Event "CRO-ch Youth U17 2020"]
[Site "Vinkovci"]
[Date "2020.07.29"]
[Round "3.5"]
[White "Baturina, Marin"]
[Black "Karlusic, Luka"]
[Result "0-1"]
[ECO "D31"]
[WhiteElo "1740"]
[BlackElo "2169"]
[Annotator "RC"]
[PlyCount "78"]
[EventDate "2020.07.28"]
[EventType "swiss"]
[EventCountry "CRO"]
[SourceTitle "playchess.com"]
[Source "ChessBase"]
[SourceQuality "1"]
[TimeControl "5400+30"]

1. d4 {[%emt 0:00:30]} d5 {[%emt 0:00:30]} 2. c4 {[%emt 0:00:00]} e6 {[%emt 0:00:00]} 3. Nc3 {[%emt 0:00:00]} c6 {[%emt 0:00:00]} 4. Nf3 {[%emt 0:02:30]} dxc4 {[%emt 0:00:00]} 5. e3 {[%emt 0:01:30]} b5 {[%emt 0:00:00]} 6. a4 {[%emt 0:00:30]} Bb4 {[%emt 0:00:30]} 7. Be2 {[%emt 0:03:30]} Bb7 {[%emt 0:04:30]} 8. O-O {[%emt 0:01:30]} a6 {[%emt 0:01:30]} 9. Bd2 {[%emt 0:04:30]} Qe7 {[%emt 0:11:30]} 10. b3 {[%emt 0:02:30]} Bxc3 {[%emt 0:02:30]} 11. Bxc3 {[%emt 0:00:30]} b4 {[%emt 0:00:00]} 12. Be1 {[%emt 0:03:30]} c3 {[%emt 0:00:00]} 13. Ne5 {[%emt 0:02:30]} Nd7 {[%emt 0:10:30]} 14. Nc4 {[%emt 0:02:30]} a5 {[%emt 0:03:30]} 15. f3 {[%emt 0:02:30]} Ba6 {[%emt 0:03:30]} 16. Bg3 {[%emt 0:03:30]} Bxc4 {[%emt 0:00:00]} 17. Bxc4 {[%emt 0:00:30]} Ngf6 {[%emt 0:07:00]} 18. e4 {[%emt 0:04:30]} Nb6 {[%emt 0:07:30]} 19. Be2 {[%emt 0:05:30]} Nh5 {[%emt 0:04:30]} 20. Bf2 {[%emt 0:03:30]} Nf4 {[%emt 0:05:30]} 21. Bg3 {[%emt 0:17:30]} Nxe2+ {[%emt 0:00:30]} 22. Qxe2 {[%emt 0:00:30]} O-O {[%emt 0:00:30]} 23. Rad1 {[%emt 0:02:30]} Rfd8 {[%emt 0:03:30]} 24. Bf2 {[%emt 0:05:30]} Qb7 {[%emt 0:06:30]} 25. Rd3 {[%emt 0:02:30]} Qa6 {[%emt 0:01:30]} 26. Rfd1 {[%emt 0:02:30]} Rd7 {[%emt 0:03:30]} 27. d5 {[%emt 0:13:23]} cxd5 {[%emt 0:04:51]} 28. Bxb6 {[%emt 0:01:15]} Qxb6+ {[%emt 0:00:45]} 29. Kh1 {[%emt 0:00:01]} d4 {[%emt 0:00:15]} 30. Qc2 {[%emt 0:00:57]} e5 {[%emt 0:00:30]} 31. g4 {[%emt 0:02:41]} Qh6 {[%emt 0:00:46]} 32. Kg2 {[%emt 0:01:20]} Qf4 {[%emt 0:00:13]} 33. h3 {[%emt 0:01:44]} g6 {[%emt 0:00:27]} 34. Rg1 {[%emt 0:01:18]} Kh8 {[%emt 0:00:16]} 35. Kf1 {[%emt 0:00:58]} f5 {[%emt 0:01:55]} 36. Qe2 {[%emt 0:01:33]} fxe4 {[%emt 0:00:33]} 37. Qxe4 {[%emt 0:00:32]} Qxe4 {[%emt 0:00:30]} 38. fxe4 {[%emt 0:00:00]} Rf7+ {[%emt 0:00:11]} 39. Ke2 {[%emt 0:00:15]} Raf8 {[%emt 0:00:06]} 0-1

[Event "CRO-ch Youth U17 2020"]
[Site "Vinkovci"]
[Date "2020.07.29"]
[Round "3.6"]
[White "Bedic, Noemi"]
[Black "Dejanovic, Tereza"]
[Result "1-0"]
[ECO "B83"]
[WhiteElo "1712"]
[BlackElo "1788"]
[Annotator "NA"]
[PlyCount "75"]
[EventDate "2020.07.28"]
[EventType "swiss"]
[EventCountry "CRO"]
[SourceTitle "playchess.com"]
[Source "ChessBase"]
[SourceQuality "1"]
[TimeControl "5400+30"]

1. e4 {[%emt 0:00:30]} c5 {[%emt 0:00:30]} 2. Nc3 {[%emt 0:00:00]} Nc6 {[%emt 0:00:00]} 3. Nf3 {[%emt 0:01:00]} d6 {[%emt 0:01:00]} 4. d4 {[%emt 0:00:30]} cxd4 {[%emt 0:00:30]} 5. Nxd4 {[%emt 0:00:30]} Nf6 {[%emt 0:01:30]} 6. Be2 {[%emt 0:03:30]} e6 {[%emt 0:01:30]} 7. Be3 {[%emt 0:01:30]} Be7 {[%emt 0:00:30]} 8. Qd2 {[%emt 0:02:30]} a6 {[%emt 0:00:30]} 9. g4 {[%emt 0:10:30]} h6 {[%emt 0:04:30]} 10. g5 {[%emt 0:07:30]} hxg5 {[%emt 0:00:30]} 11. Bxg5 {[%emt 0:04:30]} Nxd4 {[%emt 0:24:30]} 12. Qxd4 {[%emt 0:01:30]} e5 {[%emt 0:02:30]} 13. Qd3 {[%emt 0:06:30]} Rh3 {[%emt 0:05:30]} 14. Qd2 {[%emt 0:11:30]} Ng4 {[%emt 0:11:30]} 15. Bxe7 {[%emt 0:04:30]} Qxe7 {[%emt 0:00:30]} 16. Nd5 {[%emt 0:01:30]} Qd8 {[%emt 0:17:30]} 17. Rg1 {[%emt 0:09:30]} Rxh2 {[%emt 0:02:30]} 18. O-O-O {[%emt 0:03:30]} Rxf2 {[%emt 0:06:28]} 19. Qd3 {[%emt 0:02:30]} f5 {[%emt 0:06:39]} 20. exf5 {[%emt 0:07:46]} Bxf5 {[%emt 0:00:11]} 21. Qd2 {[%emt 0:03:04]} Rc8 {[%emt 0:02:52]} 22. Nc3 {[%emt 0:00:53]} Qb6 {[%emt 0:04:18]} 23. Qd5 {[%emt 0:02:05]} Rxe2 {[%emt 0:03:07]} 24. Qg8+ {[%emt 0:00:42]} Kd7 {[%emt 0:00:30]} 25. Qf7+ {[%emt 0:00:22]} Kd8 {[%emt 0:00:54]} 26. Qf8+ {[%emt 0:00:51]} Kc7 {[%emt 0:01:53]} 27. Nd5+ {[%emt 0:00:13]} Kb8 {[%emt 0:00:14]} 28. Qxc8+ {[%emt 0:00:29]} Kxc8 {[%emt 0:00:49]} 29. Nxb6+ {[%emt 0:00:09]} Kc7 {[%emt 0:00:30]} 30. Nd5+ {[%emt 0:00:12]} Kd7 {[%emt 0:00:30]} 31. Rd2 {[%emt 0:01:16]} Rxd2 {[%emt 0:00:23]} 32. Kxd2 {[%emt 0:00:03]} g6 {[%emt 0:00:39]} 33. Rxg4 {[%emt 0:04:02]} Ke6 {[%emt 0:00:30]} 34. Nc7+ {[%emt 0:00:31]} Kd7 {[%emt 0:00:03]} 35. Rc4 {[%emt 0:01:05]} b5 {[%emt 0:00:11]} 36. Rc3 {[%emt 0:00:12]} b4 {[%emt 0:00:09]} 37. Rc4 {[%emt 0:00:17]} Kd8 {[%emt 0:01:34]} 38. Nxa6 {[%emt 0:00:48]} 1-0

[Event "CRO-ch Youth U17 2020"]
[Site "Vinkovci"]
[Date "2020.07.29"]
[Round "3.7"]
[White "Mihaljevic, Eva"]
[Black "Smetisko, Lucija"]
[Result "1-0"]
[ECO "D00"]
[WhiteElo "1223"]
[BlackElo "1567"]
[Annotator "NA RC"]
[PlyCount "47"]
[EventDate "2020.07.28"]
[EventType "swiss"]
[EventCountry "CRO"]
[SourceTitle "playchess.com"]
[Source "ChessBase"]
[SourceQuality "1"]
[TimeControl "5400+30"]

1. d4 {[%emt 0:00:30]} Nf6 {[%emt 0:00:30]} 2. Bf4 {[%emt 0:00:00]} d5 {[%emt 0:00:30]} 3. e3 {[%emt 0:00:00]} e6 {[%emt 0:00:00]} 4. Nd2 {[%emt 0:00:00]} Bd6 {[%emt 0:00:00]} 5. Bg3 {[%emt 0:00:00]} O-O {[%emt 0:00:30]} 6. c3 {[%emt 0:00:30]} Nbd7 {[%emt 0:02:30]} 7. Ngf3 {[%emt 0:00:30]} Bxg3 {[%emt 0:01:30]} 8. hxg3 {[%emt 0:00:00]} c5 {[%emt 0:00:30]} 9. Bd3 {[%emt 0:00:00]} h6 {[%emt 0:00:30]} 10. Ne5 {[%emt 0:05:30]} Qc7 {[%emt 0:03:30]} 11. f4 {[%emt 0:02:30]} a6 {[%emt 0:09:30]} 12. g4 {[%emt 0:01:30]} c4 {[%emt 0:09:30]} 13. Bc2 {[%emt 0:02:30]} Nxe5 {[%emt 0:03:30]} 14. dxe5 {[%emt 0:03:30]} Ne8 {[%emt 0:06:30]} 15. g5 {[%emt 0:02:30]} f6 {[%emt 0:05:30]} 16. exf6 {[%emt 0:06:30]} gxf6 {[%emt 0:00:30]} 17. Rxh6 {[%emt 0:00:30]} f5 {[%emt 0:04:30]} 18. Qh5 {[%emt 0:01:30]} Qg7 {[%emt 0:08:30]} 19. Rg6 {[%emt 0:00:30]} b5 {[%emt 0:00:30]} 20. Rxg7+ {[%emt 0:00:00]} Nxg7 {[%emt 0:00:30]} 21. Qh4 {[%emt 0:01:00]} Ra7 {[%emt 0:00:30]} 22. g6 {[%emt 0:01:30]} Ne8 {[%emt 0:00:30]} 23. Ke2 {[%emt 0:00:30]} Rg7 {[%emt 0:00:30]} 24. Rh1 {[%emt 0:00:30]} 1-0

[Event "CRO-ch Youth U17 2020"]
[Site "Vinkovci"]
[Date "2020.07.30"]
[Round "4.1"]
[White "Kovac, Petar"]
[Black "Levacic, Matej"]
[Result "0-1"]
[ECO "E01"]
[WhiteElo "1949"]
[BlackElo "2040"]
[Annotator "RC"]
[PlyCount "156"]
[EventDate "2020.07.28"]
[EventType "swiss"]
[EventCountry "CRO"]
[SourceTitle "playchess.com"]
[Source "ChessBase"]
[SourceQuality "1"]
[TimeControl "5400+30"]

1. d4 {[%emt 0:00:30]} Nf6 {[%emt 0:00:30]} 2. c4 {[%emt 0:00:00]} e6 {[%emt 0:00:00]} 3. Nf3 {[%emt 0:00:00]} d5 {[%emt 0:00:00]} 4. g3 {[%emt 0:00:00]} Bb4+ {[%emt 0:00:30]} 5. Bd2 {[%emt 0:00:00]} Bd6 {[%emt 0:00:00]} 6. Bg2 {[%emt 0:00:30]} O-O {[%emt 0:00:00]} 7. O-O {[%emt 0:00:30]} c6 {[%emt 0:00:30]} 8. Qc2 {[%emt 0:00:00]} Nbd7 {[%emt 0:00:30]} 9. Rd1 {[%emt 0:01:00]} Ne4 {[%emt 0:00:30]} 10. Bf4 {[%emt 0:00:30]} Bxf4 {[%emt 0:02:30]} 11. gxf4 {[%emt 0:00:30]} b6 {[%emt 0:04:30]} 12. Nc3 {[%emt 0:01:30]} Nxc3 {[%emt 0:01:30]} 13. bxc3 {[%emt 0:01:30]} Qc7 {[%emt 0:14:30]} 14. cxd5 {[%emt 0:11:30]} cxd5 {[%emt 0:02:30]} 15. e3 {[%emt 0:00:30]} Ba6 {[%emt 0:02:30]} 16. Rac1 {[%emt 0:01:30]} Rac8 {[%emt 0:11:30]} 17. Kh1 {[%emt 0:02:30]} Nf6 {[%emt 0:02:30]} 18. Nd2 {[%emt 0:06:30]} Qe7 {[%emt 0:05:30]} 19. Qa4 {[%emt 0:09:30]} Be2 {[%emt 0:01:30]} 20. Re1 {[%emt 0:02:30]} Bd3 {[%emt 0:01:30]} 21. Qb4 {[%emt 0:01:30]} Rfe8 {[%emt 0:05:30]} 22. Bf1 {[%emt 0:05:30]} Ng4 {[%emt 0:07:30]} 23. Qxe7 {[%emt 0:02:30]} Rxe7 {[%emt 0:00:00]} 24. f3 {[%emt 0:02:30]} Bxf1 {[%emt 0:01:00]} 25. fxg4 {[%emt 0:00:30]} Bd3 {[%emt 0:01:30]} 26. e4 {[%emt 0:02:30]} dxe4 {[%emt 0:03:30]} 27. Nxe4 {[%emt 0:00:30]} Rec7 {[%emt 0:01:30]} 28. Nd6 {[%emt 0:00:30]} Rd8 {[%emt 0:00:30]} 29. Ne4 {[%emt 0:00:30]} Rc6 {[%emt 0:04:30]} 30. Nf2 {[%emt 0:02:30]} Bc4 {[%emt 0:00:30]} 31. a3 {[%emt 0:02:30]} Bd5+ {[%emt 0:01:30]} 32. Kg1 {[%emt 0:00:00]} Rdc8 {[%emt 0:00:00]} 33. Re3 {[%emt 0:00:00]} Rc4 {[%emt 0:01:00]} 34. Rd3 {[%emt 0:02:30]} Kf8 {[%emt 0:04:30]} 35. h3 {[%emt 0:03:30]} h6 {[%emt 0:00:30]} 36. Kh2 {[%emt 0:00:30]} g5 {[%emt 0:01:37]} 37. Kg3 {[%emt 0:02:30]} b5 {[%emt 0:01:21]} 38. fxg5 {[%emt 0:04:30]} hxg5 {[%emt 0:00:06]} 39. Nd1 {[%emt 0:02:30]} Be4 {[%emt 0:01:14]} 40. Re3 {[%emt 0:00:30]} f5 {[%emt 0:00:39]} 41. gxf5 {[%emt 0:01:30]} exf5 {[%emt 0:00:10]} 42. Kh2 {[%emt 0:00:00]} Rxd4 {[%emt 0:00:33]} 43. Nf2 {[%emt 0:01:00]} Rd2 {[%emt 0:00:58]} 44. Kg1 {[%emt 0:00:00]} Bb7 {[%emt 0:03:04]} 45. Rce1 {[%emt 0:01:00]} Rcd8 {[%emt 0:02:25]} 46. Re6 {[%emt 0:01:30]} R2d6 {[%emt 0:01:56]} 47. R6e5 {[%emt 0:00:00]} Rd5 {[%emt 0:00:19]} 48. Re6 {[%emt 0:00:00]} Bc8 {[%emt 0:03:09]} 49. Rg6 {[%emt 0:01:30]} f4 {[%emt 0:00:47]} 50. Rc6 {[%emt 0:01:30]} a5 {[%emt 0:02:17]} 51. Rb6 {[%emt 0:00:30]} Bd7 {[%emt 0:01:27]} 52. Ra6 {[%emt 0:00:30]} a4 {[%emt 0:00:10]} 53. Rb6 {[%emt 0:00:30]} Re8 {[%emt 0:00:26]} 54. Rxe8+ {[%emt 0:00:30]} Kxe8 {[%emt 0:00:22]} 55. Ne4 {[%emt 0:01:30]} Ke7 {[%emt 0:00:33]} 56. Nf2 {[%emt 0:02:30]} Rc5 {[%emt 0:00:30]} 57. Rb7 {[%emt 0:02:30]} Rxc3 {[%emt 0:00:56]} 58. Ne4 {[%emt 0:00:30]} Rxa3 {[%emt 0:02:11]} 59. Nc5 {[%emt 0:00:30]} Ra1+ {[%emt 0:00:19]} 60. Kf2 {[%emt 0:00:30]} Rd1 {[%emt 0:00:21]} 61. Nxd7 {[%emt 0:00:30]} Rxd7 {[%emt 0:00:30]} 62. Rxb5 {[%emt 0:00:00]} Kf6 {[%emt 0:00:42]} 63. Ra5 {[%emt 0:00:00]} Rd4 {[%emt 0:00:08]} 64. Kg2 {[%emt 0:00:30]} Rd2+ {[%emt 0:00:33]} 65. Kg1 {[%emt 0:00:30]} Rd3 {[%emt 0:00:15]} 66. Ra6+ {[%emt 0:00:30]} Kf5 {[%emt 0:00:16]} 67. Ra5+ {[%emt 0:00:30]} Kf6 {[%emt 0:02:38]} 68. Ra6+ {[%emt 0:00:00]} Kg7 {[%emt 0:00:51]} 69. Rxa4 {[%emt 0:00:00]} Rxh3 {[%emt 0:00:06]} 70. Ra6 {[%emt 0:00:00]} Rh6 {[%emt 0:00:12]} 71. Ra7+ {[%emt 0:00:00]} Kg6 {[%emt 0:00:07]} 72. Kf2 {[%emt 0:00:30]} Rh3 {[%emt 0:00:16]} 73. Ra8 {[%emt 0:00:00]} Kf5 {[%emt 0:00:08]} 74. Kg2 {[%emt 0:00:00]} Rb3 {[%emt 0:00:07]} 75. Ra2 {[%emt 0:00:30]} g4 {[%emt 0:00:33]} 76. Ra4 {[%emt 0:00:30]} Rb2+ {[%emt 0:00:08]} 77. Kg1 {[%emt 0:00:00]} f3 {[%emt 0:00:22]} 78. Kf1 {[%emt 0:00:00]} Kg5 {[%emt 0:00:07]} 0-1